fUSD/lending_fUSD_20260405
["ID","MTS","AMOUNT","RATE_DAILY","PERIOD"]
[419830448,1775404174116,-679.68783971,7.681e-05,2]
[419830449,1775404174146,-679.68783971,7.681e-05,2]
[419830450,1775404174174,-679.68783971,7.681e-05,2]
[419830451,1775404174203,-679.68783971,7.681e-05,2]
[419830452,1775404174234,-679.68783971,7.681e-05,2]
[419830453,1775404174263,-679.68783971,7.681e-05,2]
[419830454,1775404174288,-206.42390757,7.681e-05,2]
[419830455,1775404174315,-662.69564371,7.681e-05,2]
[419830456,1775404174342,-662.69564371,7.681e-05,2]
[419830457,1775404174370,-662.69564371,7.681e-05,2]
[419830458,1775404174396,-662.69564371,7.681e-05,2]
[419830459,1775404174424,-662.69564371,7.681e-05,2]
[419830460,1775404174451,-662.69564371,7.681e-05,2]
[419830461,1775404174478,-662.69564371,7.681e-05,2]
[419830462,1775404174504,-662.69564371,7.681e-05,2]
[419830463,1775404174531,-662.69564371,7.681e-05,2]
[419830464,1775404174558,-662.69564371,7.681e-05,2]
[419830465,1775404174584,-662.69564371,7.681e-05,2]
[419830466,1775404174612,-662.69564371,7.681e-05,2]
[419830467,1775404174638,-662.69564371,7.681e-05,2]
[419830468,1775404174673,-662.69564371,7.681e-05,2]
[419830469,1775404174703,-662.69564371,7.681e-05,2]
[419830470,1775404174730,-662.69564371,7.681e-05,2]
[419830471,1775404174758,-662.69564371,7.681e-05,2]
[419830472,1775404174785,-662.69564371,7.681e-05,2]
[419830473,1775404174813,-662.69564371,7.681e-05,2]
[419830474,1775404174840,-662.69564371,7.681e-05,2]
[419830475,1775404174867,-662.69564371,7.681e-05,2]
[419830476,1775404174895,-662.69564371,7.681e-05,2]
[419830477,1775404174923,-662.69564371,7.681e-05,2]
[419830478,1775404174951,-662.69564371,7.681e-05,2]
[419830479,1775404174978,-662.69564371,7.681e-05,2]
[419830480,1775404175006,-662.69564371,7.681e-05,2]
[419830481,1775404175034,-662.69564371,7.681e-05,2]
[419830482,1775404175062,-662.69564371,7.681e-05,2]
[419830483,1775404175089,-662.69564371,7.681e-05,2]
[419830484,1775404175123,-662.69564371,7.681e-05,2]
[419830485,1775404175154,-662.69564371,7.681e-05,2]
[419830486,1775404175177,-168.44808804,7.681e-05,2]
[419830487,1775404175205,-662.69564368,7.681e-05,2]
[419830488,1775404175234,-662.69564368,7.681e-05,2]
[419830489,1775404175263,-662.69564368,7.681e-05,2]
[419830490,1775404175292,-662.69564368,7.681e-05,2]
[419830491,1775404175322,-662.69564368,7.681e-05,2]
[419830492,1775404175348,-169.9185675,7.681e-05,2]
[419830493,1775404175373,-574.67562518,7.681e-05,2]
[419830494,1775404175398,-167.6123734,7.681e-05,2]
[419830495,1775404175425,-171.44324093,7.681e-05,2]
[419830496,1775404175449,-159.11464001,7.681e-05,2]
[419830497,1775404175477,-47495.08803181,7.682e-05,2]
[419830517,1775404233939,-500.0,7.663e-05,2]
[419830519,1775404233949,-500.0,7.663e-05,2]
[419830521,1775404233958,-140.0,7.663e-05,2]
[419830523,1775404233970,-360.0,7.663e-05,2]
[419830525,1775404233978,-389.6440699,7.663e-05,2]
[419830527,1775404233990,-110.3559301,7.663e-05,2]
[419830529,1775404233999,-500.0,7.663e-05,2]
[419830531,1775404234009,-260.0,7.663e-05,2]
[419830533,1775404234018,-1000.0,7.681e-05,2]
[419830535,1775404234027,-300.0,7.681e-05,2]
[419830538,1775404234037,-1200.0,7.681e-05,2]
[419830540,1775404234046,-6799.43305103,7.681e-05,2]
[419830542,1775404234055,-2681.52205736,7.681e-05,2]
[419830543,1775404234064,-1047.50940685,7.681e-05,2]
[419830546,1775404234074,-7444.62294292,7.681e-05,2]
[419830548,1775404234083,-713310.77055824,7.682e-05,2]
[419830550,1775404234094,-81050.81027045,7.682e-05,2]
[419830553,1775404234105,-7157.04050726,7.682e-05,2]
[419830555,1775404234116,-100357.4574495,7.682e-05,2]
[419830557,1775404234127,-1254.41808677,7.682e-05,2]
[419830559,1775404234138,-946.18351827,7.682e-05,2]
[419830562,1775404234156,-344.61706933,7.682e-05,2]
[419830564,1775404234168,-2436.47563588,7.682e-05,2]
[419830567,1775404234182,-21718.48558341,7.682e-05,2]
[419830570,1775404234197,-579.76289887,7.682e-05,2]
[419830572,1775404234208,-1018.7,7.682e-05,2]
[419830574,1775404234219,-1581.17296328,7.682e-05,2]
[419830581,1775404237515,-2366.41221321,7.682e-05,2]
[419830582,1775404237569,-19880.92767611,7.682e-05,2]
[419830583,1775404237580,-255.24580049,7.682e-05,2]
[419830584,1775404237596,-665302.64663712,7.682e-05,2]
[419830585,1775404237605,-1567.82,7.835e-05,2]
[419830586,1775404237614,-1567.82,8.079e-05,2]
[419830587,1775404237623,-196.44,8.156e-05,2]
[419830588,1775404237633,-8299.99,8.178e-05,2]
[419830589,1775404237642,-999.99,8.178e-05,2]
[419830590,1775404237651,-150.0,8.188e-05,2]
[419830591,1775404237661,-204.20995808,8.211e-05,2]
[419830592,1775404237670,-1000.0,8.211e-05,2]
[419830593,1775404237679,-1000.0,8.211e-05,2]
[419830594,1775404237688,-1000.0,8.211e-05,2]
[419830595,1775404237698,-1000.0,8.211e-05,2]
[419830596,1775404237708,-1000.0,8.211e-05,2]
[419830597,1775404237717,-9999.99,8.219e-05,2]
[419830598,1775404237727,-9999.99,8.219e-05,2]
[419830599,1775404237737,-150.99,8.219e-05,2]
[419830600,1775404237746,-299.99,8.219e-05,2]
[419830601,1775404237755,-1567.82,8.324e-05,2]
[419830602,1775404237765,-4669.54748588,8.339e-05,2]
[419830603,1775404237774,-250.0,8.339e-05,2]
[419830604,1775404237784,-250.0,8.34e-05,2]
[419830605,1775404237793,-5000.0,8.34e-05,2]
[419830606,1775404237802,-1178.87519888,8.34e-05,2]
[419830607,1775404237812,-500.0,8.396e-05,2]
[419830608,1775404237821,-500.0,8.396e-05,2]
[419830609,1775404237830,-27963.46,8.399e-05,2]
[419830610,1775404237839,-420.0,8.428e-05,2]
[419830611,1775404237850,-523.79917991,8.44e-05,2]
[419830612,1775404237860,-200.0,8.448e-05,2]
[419830613,1775404237869,-255.0,8.448e-05,2]
[419830614,1775404237878,-420.0,8.449e-05,2]
[419830615,1775404237887,-1680.0,8.449e-05,2]
[419830616,1775404237897,-250.0,8.449e-05,2]
[419830617,1775404237906,-200.0,8.496e-05,2]
[419830618,1775404237915,-15651.09,8.496e-05,2]
[419830619,1775404237924,-1177.0,8.502e-05,2]
[419830620,1775404237934,-4511.57,8.514e-05,2]
[419830621,1775404237943,-1567.82,8.569e-05,2]
[419830622,1775404237954,-348.0,8.619e-05,2]
[419830623,1775404237963,-1955.0,8.727e-05,2]
[419830624,1775404237973,-555.0,8.745e-05,2]
[419830625,1775404237982,-1500.0,8.758e-05,2]
[419830626,1775404237993,-1500.0,8.758e-05,2]
[419830627,1775404238003,-1500.0,8.758e-05,2]
[419830628,1775404238012,-1500.0,8.758e-05,2]
[419830629,1775404238022,-1500.0,8.758e-05,2]
[419830630,1775404238032,-500.0,8.762e-05,2]
[419830631,1775404238041,-624.0,8.762e-05,2]
[419830632,1775404238051,-1567.82,8.814e-05,2]
[419830633,1775404238060,-196.44,8.836e-05,2]
[419830634,1775404238070,-150.0,9e-05,2]
[419830636,1775404238080,-500.0,9.036e-05,2]
[419830637,1775404238088,-1567.82,9.059e-05,2]
[419830639,1775404238098,-587.0,9.271e-05,2]
[419830640,1775404238109,-433.0,9.293e-05,2]
[419830641,1775404238118,-587.0,9.294e-05,2]
[419830642,1775404238128,-2351.0,9.294e-05,2]
[419830643,1775404238139,-1567.82,9.303e-05,2]
[419830644,1775404238148,-2000.0,9.306e-05,2]
[419830645,1775404238158,-508.06532933,9.306e-05,2]
[419830646,1775404238168,-2000.0,9.306e-05,2]
[419830647,1775404238180,-2000.0,9.306e-05,2]
[419830648,1775404238189,-2000.0,9.306e-05,2]
[419830649,1775404238199,-500.0,9.31e-05,2]
[419830650,1775404238208,-196.44,9.516e-05,2]
[419830651,1775404238218,-500.0,9.584e-05,2]
[419830652,1775404238228,-2500.0,9.854e-05,2]
[419830653,1775404238238,-2500.0,9.854e-05,2]
[419830654,1775404238248,-2500.0,9.854e-05,2]
[419830655,1775404238258,-2500.0,9.854e-05,2]
[419830656,1775404238268,-500.0,9.858e-05,2]
[419830657,1775404238278,-600.0,9.923e-05,2]
[419830658,1775404238287,-227.63,9.923e-05,2]
[419830659,1775404238298,-165.60997464,0.0001,8]
[419830660,1775404238308,-151.0,0.0001,2]
[419830661,1775404238319,-151.0,0.0001,2]
[419830662,1775404238330,-151.0,0.0001,2]
[419830663,1775404238340,-151.0,0.0001,2]
[419830664,1775404238351,-151.0,0.0001,2]
[419830665,1775404238361,-151.0,0.0001,2]
[419830666,1775404238371,-151.0,0.0001,2]
[419830667,1775404238382,-151.0,0.0001,2]
[419830668,1775404238394,-151.0,0.0001,2]
[419830669,1775404238405,-151.0,0.0001,2]
[419830670,1775404238414,-151.0,0.0001,2]
[419830671,1775404238424,-296.08744494,0.0001,2]
[419830672,1775404238433,-1337.30371513,0.0001,2]
[419830673,1775404238443,-757.62285791,0.0001,2]
[419830674,1775404238452,-250.0,0.00010018,2]
[419830675,1775404238462,-308.24,0.00010023,2]
[419830676,1775404238472,-500.0,0.00010132,2]
[419830677,1775404238481,-577.0,0.00010181,2]
[419830678,1775404238490,-196.44,0.00010195,2]
[419830679,1775404238499,-823.0,0.00010198,2]
[419830680,1775404238509,-736.0,0.00010222,2]
[419830681,1775404238518,-3292.0,0.00010223,2]
[419830682,1775404238528,-823.0,0.00010223,2]
[419830683,1775404238537,-503.0,0.00010274,2]
[419830684,1775404238547,-169.6929,0.000104,2]
[419830685,1775404238556,-1070.46695611,0.00010402,2]
[419830686,1775404238566,-3000.0,0.00010402,2]
[419830687,1775404238576,-3000.0,0.00010402,2]
[419830688,1775404238586,-3000.0,0.00010402,2]
[419830689,1775404238595,-373.66865711,0.00010406,2]
[419830690,1775404238604,-1386.78395259,0.00010548,2]
[419830691,1775404238614,-536.47392718,0.0001095,2]
[419830692,1775404238625,-3012.47134075,0.0001095,2]
[419830693,1775404238635,-971.62275228,0.0001095,2]
[419830694,1775404238646,-150.0,0.00010959,2]
[419830695,1775404238656,-150.0,0.00010959,2]
[419830696,1775404238666,-1561.16,0.00010959,2]
[419830697,1775404238677,-354.0,0.00011068,2]
[419830698,1775404238688,-500.0,0.00011073,2]
[419830699,1775404238699,-500.0,0.00011073,2]
[419830700,1775404238708,-500.0,0.00011073,2]
[419830701,1775404238719,-1438.09495884,0.00011096,2]
[419830702,1775404238730,-63475.53380005,0.00011099,2]
[419830703,1775404238741,-63475.53379997,0.00011099,2]
[419830704,1775404238751,-63475.53379997,0.00011099,2]
[419830705,1775404238761,-63475.53379997,0.00011099,2]
[419830706,1775404238770,-63475.53379997,0.00011099,2]
[419830707,1775404238781,-73369.80644082,0.00011099,2]
[419830708,1775404238790,-73369.80644077,0.00011099,2]
[419830709,1775404238800,-73369.80644077,0.00011099,2]
[419830710,1775404238811,-73369.80644077,0.00011099,2]
[419830711,1775404238820,-73369.80644077,0.00011099,2]
[419830712,1775404238830,-628.0,0.00011217,2]
[419830713,1775404238841,-11798.07560763,0.00011234,2]
[419830714,1775404238852,-1252.0,0.00011243,2]
[419830715,1775404238862,-4609.0,0.00011246,2]
[419830716,1775404238873,-1152.0,0.00011246,2]
[419830717,1775404238883,-2662.5,0.00011279,2]
[419830718,1775404238893,-2662.5,0.00011279,2]
[419830719,1775404238903,-2662.5,0.00011279,2]
[419830720,1775404238915,-2662.5,0.00011279,2]
[419830721,1775404238925,-2662.5,0.00011279,2]
[419830722,1775404238934,-151.0,0.000114,2]
[419830723,1775404238943,-156.587,0.000114,2]
[419830724,1775404238953,-195.25511793,0.000114,2]
[419830725,1775404238963,-2000.0,0.00011515,2]
[419830726,1775404238972,-2000.0,0.00011515,2]
[419830727,1775404238982,-2000.0,0.00011515,2]
[419830728,1775404238991,-2000.0,0.00011515,2]
[419830729,1775404239001,-2000.0,0.00011515,2]
[419830730,1775404239011,-2000.0,0.00011515,2]
[419830731,1775404239022,-2000.0,0.00011515,2]
[419830732,1775404239032,-2000.0,0.00011515,2]
[419830733,1775404239043,-2000.0,0.00011515,2]
[419830734,1775404239053,-2000.0,0.00011515,2]
[419830735,1775404239062,-2000.0,0.00011515,2]
[419830736,1775404239071,-2000.0,0.00011515,2]
[419830737,1775404239081,-2000.0,0.00011515,2]
[419830738,1775404239090,-2000.0,0.00011515,2]
[419830739,1775404239099,-2000.0,0.00011515,2]
[419830740,1775404239108,-2000.0,0.00011515,2]
[419830741,1775404239118,-2000.0,0.00011515,2]
[419830742,1775404239128,-2000.0,0.00011515,2]
[419830743,1775404239137,-2000.0,0.00011515,2]
[419830744,1775404239147,-2000.0,0.00011515,2]
[419830745,1775404239156,-2000.0,0.00011538,2]
[419830746,1775404239166,-2000.0,0.00011538,2]
[419830747,1775404239175,-2000.0,0.00011538,2]
[419830748,1775404239185,-2000.0,0.00011538,2]
[419830749,1775404239195,-2000.0,0.00011538,2]
[419830750,1775404239204,-2000.0,0.00011538,2]
[419830751,1775404239214,-2000.0,0.00011538,2]
[419830752,1775404239223,-2000.0,0.00011538,2]
[419830753,1775404239233,-2000.0,0.00011538,2]
[419830754,1775404239243,-2000.0,0.00011538,2]
[419830755,1775404239253,-2000.0,0.00011538,2]
[419830757,1775404239582,-2000.0,0.00011538,2]
[419830758,1775404239592,-2000.0,0.00011538,2]
[419830759,1775404239601,-2000.0,0.00011538,2]
[419830760,1775404239611,-2000.0,0.00011538,2]
[419830761,1775404239620,-2000.0,0.00011538,2]
[419830762,1775404239630,-2000.0,0.00011538,2]
[419830763,1775404239639,-2000.0,0.00011538,2]
[419830765,1775404239648,-2000.0,0.00011538,2]
[419830767,1775404239658,-2000.0,0.00011538,2]
[419830769,1775404239667,-501.14299175,0.00011621,2]
[419830771,1775404239677,-1000.0,0.00011621,2]
[419830773,1775404239687,-1000.0,0.00011621,2]
[419830775,1775404239696,-1491.30447232,0.00011644,2]
[419830776,1775404239706,-842.00936818,0.00011738,2]
[419830777,1775404239715,-150.0,0.00011752,2]
[419830778,1775404239724,-150.0,0.00011752,2]
[419830779,1775404239733,-191.9712,0.000118,2]
[419830780,1775404239742,-63475.53379997,0.00011906,2]
[419830781,1775404239751,-73369.80644077,0.00011929,2]
[419830782,1775404239760,-1118.553269,0.0001197,2]
[419830783,1775404239768,-11867.35567414,0.00011987,2]
[419830784,1775404239778,-166.66,0.00012053,2]
[419830785,1775404239787,-44622.78,0.00012055,2]
[419830786,1775404239796,-1697.4,0.00012087,2]
[419830787,1775404239805,-1108.3186174,0.00012168,2]
[419830788,1775404239814,-1377.452931,0.00012168,2]
[419830789,1775404239823,-1546.48273779,0.00012192,2]
[419830790,1775404239832,-10574.05689,0.00012215,2]
[419830791,1775404239842,-1000.0,0.00012265,2]
[419830792,1775404239851,-6453.0,0.0001237,2]
[419830793,1775404239861,-1613.0,0.0001237,2]
[419830794,1775404239870,-2129.0,0.00012372,2]
[419830795,1775404239879,-11798.07560763,0.00012401,2]
[419830796,1775404239890,-166.66,0.00012451,2]
[419830797,1775404239900,-500.0,0.00012455,2]
[419830798,1775404239910,-500.0,0.00012455,2]
[419830799,1775404239922,-500.0,0.00012455,2]
[419830800,1775404239931,-500.0,0.00012455,2]
[419830801,1775404239941,-500.0,0.00012455,2]
[419830802,1775404239951,-500.0,0.00012455,2]
[419830803,1775404239961,-500.0,0.00012455,2]
[419830804,1775404239970,-500.0,0.00012455,2]
[419830805,1775404239980,-500.0,0.00012455,2]
[419830806,1775404239990,-500.0,0.00012455,2]
[419830807,1775404239999,-500.0,0.00012455,2]
[419830808,1775404240009,-500.0,0.00012455,2]
[419830809,1775404240019,-615.77009816,0.00012455,2]
[419830810,1775404240029,-500.0,0.00012455,2]
[419830811,1775404240038,-500.0,0.00012455,2]
[419830812,1775404240047,-500.0,0.00012455,2]
[419830813,1775404240057,-500.0,0.00012455,2]
[419830814,1775404240066,-500.0,0.00012455,2]
[419830815,1775404240075,-1939.0,0.00012455,2]
[419830816,1775404240085,-500.0,0.00012455,2]
[419830817,1775404240094,-1939.0,0.00012455,2]
[419830818,1775404240103,-500.0,0.00012455,2]
[419830819,1775404240113,-1939.0,0.00012455,2]
[419830820,1775404240123,-500.0,0.00012455,2]
[419830821,1775404240132,-1939.0,0.00012455,2]
[419830822,1775404240143,-500.0,0.00012455,2]
[419830823,1775404240152,-1939.0,0.00012455,2]
[419830824,1775404240162,-500.0,0.00012455,2]
[419830825,1775404240171,-1939.0,0.00012455,2]
[419830826,1775404240181,-1939.0,0.00012455,2]
[419830827,1775404240191,-500.0,0.00012455,2]
[419830828,1775404240200,-500.0,0.00012455,2]
[419830829,1775404240210,-1939.0,0.00012455,2]
[419830830,1775404240220,-1939.0,0.00012455,2]
[419830831,1775404240230,-500.0,0.00012455,2]
[419830832,1775404240239,-1939.0,0.00012455,2]
[419830833,1775404240249,-500.0,0.00012455,2]
[419830834,1775404240259,-1939.0,0.00012455,2]
[419830835,1775404240269,-616.0,0.00012455,2]
[419830836,1775404240278,-1939.0,0.00012455,2]
[419830837,1775404240289,-1939.0,0.00012455,2]
[419830838,1775404240299,-500.0,0.00012455,2]
[419830839,1775404240309,-1939.0,0.00012455,2]
[419830840,1775404240319,-500.0,0.00012455,2]
[419830841,1775404240328,-1939.0,0.00012455,2]
[419830842,1775404240338,-500.0,0.00012455,2]
[419830843,1775404240347,-1939.0,0.00012455,2]
[419830844,1775404240356,-500.0,0.00012455,2]
[419830845,1775404240366,-500.0,0.00012455,2]
[419830846,1775404240375,-500.0,0.00012455,2]
[419830847,1775404240385,-1939.0,0.00012455,2]
[419830848,1775404240395,-500.0,0.00012455,2]
[419830849,1775404240404,-500.0,0.00012455,2]
[419830850,1775404240414,-500.0,0.00012455,2]
[419830851,1775404240424,-500.0,0.00012455,2]
[419830852,1775404240434,-500.0,0.00012455,2]
[419830853,1775404240443,-1939.0,0.00012455,2]
[419830854,1775404240453,-500.0,0.00012455,2]
[419830855,1775404240462,-500.0,0.00012455,2]
[419830856,1775404240471,-500.0,0.00012455,2]
[419830857,1775404240480,-338.15756367,0.00012455,2]
[419830858,1775404240490,-1939.0,0.00012455,2]
[419830859,1775404240499,-1939.0,0.00012455,2]
[419830860,1775404240508,-1939.0,0.00012455,2]
[419830861,1775404240518,-1939.0,0.00012455,2]
[419830862,1775404240527,-1939.0,0.00012455,2]
[419830863,1775404240537,-1939.20664146,0.00012455,2]
[419830864,1775404240546,-500.0,0.00012548,2]
[419830865,1775404240555,-1603.70259909,0.0001274,2]
[419830866,1775404240564,-63475.53379997,0.0001274,2]
[419830867,1775404240573,-160.0,0.00012759,2]
[419830868,1775404240582,-73369.80644077,0.00012768,2]
[419830869,1775404240591,-211.03,0.00012842,2]
[419830870,1775404240600,-166.66,0.00012848,2]
[419830871,1775404240610,-165.3,0.00012905,2]
[419830872,1775404240620,-346.91403032,0.00012979,2]
[419830873,1775404240629,-250.0,0.00013,2]
[419830874,1775404240639,-600.0,0.00013088,2]
[419830875,1775404240648,-227.63,0.00013088,2]
[419830876,1775404240658,-150.0,0.00013095,2]
[419830877,1775404240668,-503.0,0.00013111,2]
[419830878,1775404240678,-166.66,0.00013246,2]
[419830879,1775404240687,-392.25556073,0.00013288,2]
[419830880,1775404240697,-217.1743,0.000133,2]
[419830881,1775404240707,-173.47,0.00013453,2]
[419830882,1775404240716,-11798.07560763,0.00013567,2]
[419830883,1775404240726,-63475.53379997,0.00013575,2]
[419830884,1775404240735,-308.24,0.00013583,2]
[419830885,1775404240745,-1504.0387564,0.00013598,2]
[419830886,1775404240755,-73369.80644077,0.00013606,2]
[419830887,1775404240765,-9035.0,0.00013607,2]
[419830888,1775404240776,-2258.0,0.00013607,2]
[419830889,1775404240787,-3620.0,0.00013609,2]
[419830890,1775404240796,-166.66,0.00013644,2]
[419830891,1775404240806,-150.0,0.00013695,2]
[419830892,1775404240816,-500.0,0.00013698,2]
[419830893,1775404240826,-500.0,0.00013698,2]
[419830894,1775404240835,-500.0,0.00013698,2]
[419830895,1775404240844,-500.0,0.00013698,2]
[419830896,1775404240854,-500.0,0.00013698,2]
[419830897,1775404240863,-500.0,0.00013698,2]
[419830898,1775404240873,-500.0,0.00013698,2]
[419830899,1775404240882,-500.0,0.00013698,2]
[419830900,1775404240891,-500.0,0.00013698,2]
[419830901,1775404240901,-500.0,0.00013698,2]
[419830902,1775404240910,-500.0,0.00013698,2]
[419830903,1775404240920,-500.0,0.00013698,2]
[419830904,1775404240929,-500.0,0.00013698,2]
[419830905,1775404240938,-500.0,0.00013698,2]
[419830906,1775404240948,-500.0,0.00013698,2]
[419830907,1775404240960,-500.0,0.00013698,2]
[419830908,1775404240969,-500.0,0.00013698,2]
[419830909,1775404240979,-500.0,0.00013698,2]
[419830910,1775404240988,-500.0,0.00013698,2]
[419830911,1775404240998,-500.0,0.00013698,2]
[419830912,1775404241007,-500.0,0.00013698,2]
[419830913,1775404241016,-500.0,0.00013698,2]
[419830914,1775404241026,-500.0,0.00013698,2]
[419830915,1775404241035,-500.0,0.00013698,2]
[419830916,1775404241045,-500.0,0.00013698,2]
[419830917,1775404241054,-500.0,0.00013698,2]
[419830918,1775404241064,-500.0,0.00013698,2]
[419830919,1775404241073,-500.0,0.00013698,2]
[419830920,1775404241083,-390.77484076,0.00013698,2]
[419830921,1775404241092,-500.0,0.00013698,2]
[419830922,1775404241102,-500.0,0.00013698,2]
[419830923,1775404241112,-500.0,0.00013698,2]
[419830924,1775404241124,-500.0,0.00013698,2]
[419830925,1775404241134,-500.0,0.00013698,2]
[419830926,1775404241143,-500.0,0.00013698,2]
[419830927,1775404241154,-500.0,0.00013698,2]
[419830928,1775404241163,-500.0,0.00013698,2]
[419830929,1775404241173,-500.0,0.00013698,2]
[419830930,1775404241183,-500.0,0.00013698,2]
[419830931,1775404241192,-500.0,0.00013698,2]
[419830932,1775404241201,-500.0,0.00013698,2]
[419830933,1775404241211,-988.81,0.00013698,2]
[419830934,1775404241220,-988.81,0.00013698,2]
[419830935,1775404241230,-988.81,0.00013698,2]
[419830936,1775404241239,-988.81,0.00013698,2]
[419830937,1775404241249,-988.81,0.00013698,2]
[419830938,1775404241258,-988.81,0.00013698,2]
[419830939,1775404241268,-988.81,0.00013698,2]
[419830940,1775404241277,-988.81,0.00013698,2]
[419830941,1775404241286,-988.81,0.00013698,2]
[419830942,1775404241296,-988.81,0.00013698,2]
[419830943,1775404241306,-988.81,0.00013698,2]
[419830944,1775404241316,-988.81,0.00013698,2]
[419830945,1775404241325,-554.52,0.00013698,2]
[419830946,1775404241335,-554.52,0.00013698,2]
[419830947,1775404241345,-554.52,0.00013698,2]
[419830948,1775404241354,-554.52,0.00013698,2]
[419830949,1775404241364,-554.52,0.00013698,2]
[419830950,1775404241373,-888.51,0.00013698,2]
[419830951,1775404241382,-554.52,0.00013698,2]
[419830952,1775404241392,-888.51,0.00013698,2]
[419830953,1775404241402,-554.52,0.00013698,2]
[419830954,1775404241411,-888.51,0.00013698,2]
[419830955,1775404241420,-554.52,0.00013698,2]
[419830956,1775404241429,-888.51,0.00013698,2]
[419830957,1775404241438,-554.52,0.00013698,2]
[419830958,1775404241448,-888.51,0.00013698,2]
[419830959,1775404241458,-554.52,0.00013698,2]
[419830960,1775404241468,-888.51,0.00013698,2]
[419830961,1775404241477,-554.52,0.00013698,2]
[419830962,1775404241486,-888.51,0.00013698,2]
[419830963,1775404241496,-554.52,0.00013698,2]
[419830964,1775404241505,-888.51,0.00013698,2]
[419830965,1775404241515,-888.51,0.00013698,2]
[419830966,1775404241525,-888.51,0.00013698,2]
[419830967,1775404241534,-888.51,0.00013698,2]
[419830968,1775404241544,-888.51,0.00013698,2]
[419830969,1775404241554,-500.0,0.00013698,2]
[419830970,1775404241563,-500.0,0.00013698,2]
[419830971,1775404241572,-500.0,0.00013698,2]
[419830972,1775404241583,-500.0,0.00013698,2]
[419830973,1775404241593,-500.0,0.00013698,2]
[419830974,1775404241603,-500.0,0.00013698,2]
[419830975,1775404241613,-500.0,0.00013698,2]
[419830976,1775404241625,-500.0,0.00013698,2]
[419830977,1775404241635,-500.0,0.00013698,2]
[419830978,1775404241645,-500.0,0.00013698,2]
[419830979,1775404241656,-500.0,0.00013698,2]
[419830980,1775404241665,-500.0,0.00013698,2]
[419830981,1775404241675,-551.83212521,0.00013698,2]
[419830982,1775404241685,-937.06,0.00013698,2]
[419830983,1775404241694,-937.06,0.00013698,2]
[419830984,1775404241705,-937.06,0.00013698,2]
[419830985,1775404241714,-937.06,0.00013698,2]
[419830986,1775404241724,-937.06,0.00013698,2]
[419830987,1775404241735,-937.06,0.00013698,2]
[419830988,1775404241745,-937.06,0.00013698,2]
[419830989,1775404241755,-937.06,0.00013698,2]
[419830990,1775404241765,-937.06,0.00013698,2]
[419830991,1775404241774,-937.06,0.00013698,2]
[419830992,1775404241784,-937.06,0.00013698,2]
[419830993,1775404241794,-937.06,0.00013698,2]
[419830994,1775404241803,-500.0,0.00013698,2]
[419830995,1775404241813,-500.0,0.00013698,2]
[419830996,1775404241822,-500.0,0.00013698,2]
[419830997,1775404241832,-500.0,0.00013698,2]
[419830998,1775404241841,-500.0,0.00013698,2]
[419830999,1775404241850,-500.0,0.00013698,2]
[419831000,1775404241860,-500.0,0.00013698,2]
[419831001,1775404241869,-500.0,0.00013698,2]
[419831002,1775404241878,-500.0,0.00013698,2]
[419831003,1775404241888,-500.0,0.00013698,2]
[419831004,1775404241897,-500.0,0.00013698,2]
[419831005,1775404241907,-500.0,0.00013698,2]
[419831006,1775404241917,-533.3,0.00013698,2]
[419831007,1775404241926,-533.3,0.00013698,2]
[419831008,1775404241936,-533.3,0.00013698,2]
[419831009,1775404241945,-533.3,0.00013698,2]
[419831010,1775404241955,-533.3,0.00013698,2]
[419831011,1775404241964,-533.3,0.00013698,2]
[419831012,1775404241974,-533.3,0.00013698,2]